[Event "98th Caplin Hastings Masters 2024-25"]
[Site "Hastings"]
[Date "2024.12.31"]
[Round "6.18"]
[White "Badacsonyi, Frankie"]
[Black "Kolka, David"]
[Result "0-1"]
[ECO "D30"]
[WhiteElo "2218"]
[BlackElo "2020"]
[Annotator "TA"]
[PlyCount "74"]
[EventDate "2024.12.23"]
[EventType "swiss"]
[EventCountry "ENG"]
[SourceTitle "playchess.com"]
[Source "ChessBase"]
[SourceQuality "1"]
[TimeControl "5400+30"]

{[%evp 9,74,23,26,21,33,38,42,46,54,43,67,27,26,16,56,54,51,50,100,30,40,44,84,87,89,74,75,56,55,55,104,8,43,57,46,0,5,4,7,-28,-28,-22,-26,-104,-106,-419,-420,-408,-407,-579,-541,-594,-639,-475,-563,-788,-787,-727,-722,-1015,-936,-1113,-1012,-1162,-1087,-976,-930]} 1. d4 {[%emt 0:00:03]} d5 {[%emt 0:00:04]} 2. c4 {[%emt 0:00:29]} e6 {[%emt 0:00:04]} 3. Nf3 {[%emt 0:00:40]} a6 {[%emt 0:00:24]} 4. Bg5 {[%emt 0:01:53]} Be7 {[%emt 0:00:39]} 5. Bxe7 {[%emt 0:00:11]} Nxe7 {[%emt 0:00:19]} 6. Nbd2 {[%emt 0:01:05]} dxc4 {[%emt 0:22:24]} 7. Nxc4 {[%emt 0:01:18]} b5 {[%emt 0:02:42]} 8. Ncd2 {[%emt 0:02:29]} Bb7 {[%emt 0:01:11]} 9. e3 {[%emt 0:01:19]} Nd7 {[%emt 0:02:54]} 10. Nb3 {[%emt 0:01:09]} Rc8 {[%emt 0:09:19]} 11. Rc1 {[%emt 0:04:34]} Bd5 {[%emt 0:05:01]} 12. Nc5 {[%emt 0:07:51]} Nxc5 {[%emt 0:02:17]} 13. Rxc5 {[%emt 0:00:18]} Nf5 {[%emt 0:03:19]} ({Black should play} 13... Bxf3 $14 14. gxf3 (14. Qxf3 c6 $16) 14... c6) 14. a3 {[%emt 0:05:35]} (14. Bd3 $16 {and e4 should not be overlooked} Nd6 15. Qc2) 14... Nd6 {[%emt 0:03:55]} 15. b4 {[%emt 0:01:04]} f6 {[%emt 0:24:05][%cal Bf7f6,Bf6f5][%mdl 32]} 16. Bd3 {[%emt 0:02:05]} O-O {[%emt 0:03:27]} 17. Qc2 {[%emt 0:01:51]} f5 {[%emt 0:04:39]} 18. Qe2 {[%emt 0:02:10]} c6 {[%emt 0:00:50]} 19. O-O {[%emt 0:01:30]} a5 {[%emt 0:00:58] [#]} (19... Qe8 $14 {is more appropriate.}) 20. Ne5 {[%emt 0:01:03]} ({Better is} 20. Rfc1 $1 $16) 20... Nf7 {[%emt 0:04:58]} 21. Nxf7 {[%emt 0:02:08]} Rxf7 {[%emt 0:00:06]} 22. Rfc1 {[%emt 0:00:08][%cal Od3b5]} axb4 {[%emt 0:01:49]} 23. axb4 {[%emt 0:00:05][%cal Od3b5] Black should prevent Bxb5!.} Ra8 {[%emt 0:00:17]} 24. f3 {[%emt 0:02:42]} Ra2 {[%emt 0:00:34]} 25. R5c2 {[%emt 0:02:04]} Rfa7 {[%emt 0:00:42]} 26. h3 {[%emt 0:16:28]} (26. Qe1 $11 {remains equal.}) 26... Rxc2 $17 {[%emt 0:01:29]} 27. Qxc2 $4 {[%emt 0:01:50][%mdl 8192] [#]} (27. Bxc2 $17 Qg5 28. Qf2) 27... Ra2 $1 $19 {[%emt 0:00:12]} 28. Qc3 {[%emt 0:07:40]} Qg5 $1 {[%emt 0:00:22][%csl Ga2,LRe3,LRf3,LRg2][%cal Rg5g2]} 29. Bf1 {[%emt 0:00:16]} (29. Rc2 $142 Qxe3+ 30. Kh1 Rxc2 31. Qxc2) 29... Bxf3 {[%emt 0:00:28][%cal Ra2g2] ( -> ...Rxg2+)} 30. Rc2 {[%emt 0:00:25]} Rxc2 {[%emt 0:00:20]} 31. Qxc2 {[%emt 0:00:02]} Qxe3+ {[%emt 0:00:10]} 32. Qf2 {[%emt 0:05:23]} Qxf2+ {[%emt 0:00:20]} 33. Kxf2 {[%emt 0:00:02] KB-KB. Black is two pawns up.} Bd5 {[%emt 0:00:26]} 34. g3 {[%emt 0:02:03]} Kf7 {[%emt 0:00:26]} 35. h4 {[%emt 0:00:15]} Kf6 {[%emt 0:00:24]} 36. Ke3 {[%emt 0:00:15]} e5 {[%emt 0:01:59]} 37. Be2 {[%emt 0:00:38]} g6 {[%emt 0:00:13]} 0-1

[Event "98th Caplin Hastings Masters 2024-25"]
[Site "Hastings"]
[Date "2024.12.31"]
[Round "6.19"]
[White "Alcindor, Samuel"]
[Black "Nielsen, Andre"]
[Result "0-1"]
[ECO "C44"]
[WhiteElo "1927"]
[BlackElo "2276"]
[Annotator "NA"]
[PlyCount "106"]
[EventDate "2024.12.23"]
[EventType "swiss"]
[EventCountry "ENG"]
[SourceTitle "playchess.com"]
[Source "ChessBase"]
[SourceQuality "1"]
[TimeControl "5400+30"]

1. e4 {[%emt 0:00:33]} e5 {[%emt 0:00:36]} 2. Nf3 {[%emt 0:00:27]} Nc6 {[%emt 0:00:13]} 3. c3 {[%emt 0:00:12]} Nf6 {[%emt 0:16:45]} 4. d4 {[%emt 0:00:06]} Nxe4 {[%emt 0:00:16]} 5. d5 {[%emt 0:00:06]} Bc5 {[%emt 0:00:46]} 6. dxc6 {[%emt 0:10:34]} Bxf2+ {[%emt 0:00:55] C44: Ponziani Opening and Scotch Gambit.} 7. Ke2 {[%emt 0:00:12]} Bb6 {[%emt 0:00:21]} 8. Be3 {[%emt 0:10:29]} bxc6 {[%emt 0:01:10]} 9. Qd3 {[%emt 0:03:10]} d5 {[%emt 0:18:00]} 10. Bxb6 {[%emt 0:01:08]} axb6 {[%emt 0:00:25]} 11. Qe3 {[%emt 0:00:28]} O-O {[%emt 0:02:17]} 12. Nbd2 {[%emt 0:01:23]} Nxd2 {[%emt 0:14:08]} 13. Kxd2 {[%emt 0:07:56]} e4 {[%emt 0:01:55]} 14. Nd4 {[%emt 0:03:11]} c5 {[%emt 0:00:18]} 15. Ne2 {[%emt 0:07:39]} Bb7 {[%emt 0:02:33]} 16. Kc2 {[%emt 0:03:13]} Qd7 {[%emt 0:03:44]} 17. Nf4 {[%emt 0:12:20]} (17. a3 $142) 17... Kh8 {[%emt 0:12:26]} (17... d4 $142 18. Qg3 d3+ (18... Qa4+ $2 19. b3 $19) 19. Nxd3 Rfd8 (19... exd3+ 20. Bxd3 Qc6 21. Rhe1 $19)) 18. Qg3 {[%emt 0:02:12]} d4 {[%emt 0:01:45]} 19. Nh5 $2 {[%emt 0:02:57]} (19. a3) 19... Rg8 {[%emt 0:00:55]} 20. b3 $19 {[%emt 0:04:47]} d3+ {[%emt 0:05:25]} 21. Kd2 {[%emt 0:00:31]} c4 {[%emt 0:01:14]} 22. bxc4 {[%emt 0:05:04]} Ra5 {[%emt 0:02:42]} 23. Nf4 {[%emt 0:01:12]} Rga8 {[%emt 0:02:22]} 24. Nd5 {[%emt 0:01:35]} Bxd5 {[%emt 0:01:56]} 25. cxd5 {[%emt 0:00:10]} Rxa2+ {[%emt 0:06:29]} 26. Rxa2 {[%emt 0:00:07]} Rxa2+ {[%emt 0:00:05]} 27. Ke3 {[%emt 0:00:28]} f5 {[%emt 0:01:01]} 28. Qe5 {[%emt 0:00:32]} h6 {[%emt 0:01:59]} 29. g3 {[%emt 0:00:48]} Ra5 {[%emt 0:00:31]} 30. c4 {[%emt 0:00:27]} Ra2 {[%emt 0:00:35]} 31. Qe6 {[%emt 0:00:32]} Qxe6 {[%emt 0:01:04]} 32. dxe6 {[%emt 0:00:01]} Kg8 {[%emt 0:00:11]} 33. Kd4 {[%emt 0:08:34]} Kf8 {[%emt 0:00:31]} 34. Bh3 {[%emt 0:00:20]} Ra5 {[%emt 0:01:16]} 35. Rf1 {[%emt 0:00:10]} g6 {[%emt 0:00:32]} 36. g4 {[%emt 0:00:04]} d2 {[%emt 0:00:13]} 37. gxf5 {[%emt 0:05:51]} gxf5 {[%emt 0:00:07]} 38. Bxf5 {[%emt 0:02:41]} d1=Q+ {[%emt 0:00:26]} 39. Rxd1 {[%emt 0:00:07]} Rxf5 {[%emt 0:00:06]} 40. Kxe4 {[%emt 0:00:04]} Rc5 {[%emt 0:00:35]} 41. Kd4 {[%emt 0:03:02]} Ke7 {[%emt 0:00:16]} 42. Re1 {[%emt 0:00:08]} Rg5 {[%emt 0:00:35]} 43. h3 {[%emt 0:03:31]} c5+ {[%emt 0:01:43]} 44. Ke4 {[%emt 0:00:02]} Kf6 {[%emt 0:00:35]} 45. Rb1 {[%emt 0:00:26]} Re5+ {[%emt 0:00:05]} 46. Kf4 {[%emt 0:00:44]} Rxe6 {[%emt 0:00:06]} 47. Rb2 {[%emt 0:00:27]} Rd6 {[%emt 0:00:27]} 48. Rb1 {[%emt 0:00:41]} Rd4+ {[%emt 0:00:36]} 49. Kf3 {[%emt 0:00:11]} Rd6 {[%emt 0:00:56]} 50. Kf4 {[%emt 0:00:12]} h5 {[%emt 0:00:32]} 51. Rb2 {[%emt 0:00:43]} Rd4+ {[%emt 0:00:20]} 52. Kf3 {[%emt 0:00:16]} Ke5 {[%emt 0:00:50]} 53. Rxb6 {[%emt 0:02:21]} Rf4+ {[%emt 0:00:08]} 0-1

[Event "98th Caplin Hastings Masters 2024-25"]
[Site "Hastings"]
[Date "2024.12.31"]
[Round "6.20"]
[White "Bazakutsa, Svyatoslav"]
[Black "Verbytski, Oleg"]
[Result "1-0"]
[ECO "A13"]
[WhiteElo "2484"]
[BlackElo "2033"]
[Annotator "TA"]
[PlyCount "105"]
[EventDate "2024.12.23"]
[EventType "swiss"]
[EventCountry "ENG"]
[SourceTitle "playchess.com"]
[Source "ChessBase"]
[SourceQuality "1"]
[TimeControl "5400+30"]

{[%evp 21,105,45,59,47,71,74,72,66,72,63,70,66,104,104,108,93,110,110,103,104,102,0,112,88,106,105,111,111,106,102,142,106,106,109,102,108,110,112,109,117,127,127,122,111,134,107,313,194,195,197,155,102,308,285,312,320,318,286,228,264,391,388,438,413,779,682,29992,29993,29993,29983,29971,492,1265,1186,29995,29996,29996,29997,29997,29996,29996,29996,29996,29996,29996,29996]} 1. b3 {[%emt 0:00:31]} e6 {[%emt 0:00:13]} 2. Bb2 {[%emt 0:00:07]} d5 {[%emt 0:00:05]} 3. Nf3 {[%emt 0:00:10]} Nf6 {[%emt 0:00:06]} 4. e3 {[%emt 0:00:10]} c5 {[%emt 0:00:06]} 5. c4 {[%emt 0:00:22]} Nc6 {[%emt 0:00:37]} 6. cxd5 {[%emt 0:00:07]} exd5 {[%emt 0:00:06]} 7. Be2 {[%emt 0:00:08]} Be7 {[%emt 0:03:20]} 8. d4 {[%emt 0:04:07]} cxd4 {[%emt 0:00:24]} 9. Nxd4 {[%emt 0:00:10]} O-O {[%emt 0:00:53]} 10. O-O {[%emt 0:00:40]} Nxd4 {[%emt 0:00:51]} 11. Qxd4 {[%emt 0:03:23]} Be6 {[%emt 0:01:19]} 12. Nc3 {[%emt 0:01:09]} b6 {[%emt 0:00:26]} 13. Rfd1 {[%emt 0:02:53] White is much more active.} Bc5 {[%emt 0:00:17]} 14. Qd3 {[%emt 0:09:51] White is better.} Qe7 {[%emt 0:01:00]} 15. Bf3 {[%emt 0:03:14]} (15. Nb5 {looks sharper.} Ne4 16. Bf3 Qh4 17. g3) 15... Rfd8 {[%emt 0:06:49]} 16. Nb5 {[%emt 0:02:29]} Rac8 {[%emt 0:08:57]} 17. Bxf6 {[%emt 0:08:13]} gxf6 {[%emt 0:02:18]} 18. g3 {[%emt 0:00:45]} f5 {[%emt 0:05:26]} 19. Rac1 {[%emt 0:05:14]} a5 {[%emt 0:01:04]} 20. Qf1 {[%emt 0:10:25]} Qf6 {[%emt 0:01:58]} 21. Rd3 {[%emt 0:09:34]} (21. Rc2 $16) 21... Qe5 {[%emt 0:04:16]} (21... f4 $1 $11 22. gxf4 (22. exf4 Bxf2+ 23. Kh1 Rxc1 $15) 22... Bf5) 22. Qd1 {[%emt 0:02:01]} Rd7 {[%emt 0:03:09]} 23. Rc2 {[%emt 0:04:38]} Rcd8 {[%emt 0:01:23]} 24. Nd4 {[%emt 0:00:09]} Rc7 {[%emt 0:01:36] Repels Nc6} 25. Kg2 {[%emt 0:07:35]} Rdc8 {[%emt 0:03:49]} 26. Nb5 {[%emt 0:01:20][%csl LRc7,LRd5]} Rd7 {[%emt 0:00:21]} 27. h4 {[%emt 0:01:27]} Rcd8 {[%emt 0:02:25]} 28. Nd4 {[%emt 0:00:09]} Rc7 {[%emt 0:00:37] Against Nc6} 29. Kh2 {[%emt 0:03:12]} Rdc8 {[%emt 0:00:48]} 30. Nb5 {[%emt 0:00:14][%csl LRc7,LRd5]} Rd7 {[%emt 0:00:15]} 31. Bg2 $36 {[%emt 0:01:05][%mdl 2048] White is in control.} Rcd8 {[%emt 0:01:29]} 32. Nd4 {[%emt 0:00:07]} Rc7 {[%emt 0:00:41] Prevents Nc6} 33. a3 {[%emt 0:04:16]} Bxa3 $2 {[%emt 0:02:24]} (33... Qf6 $16) 34. Nc6 {[%emt 0:01:01]} Rxc6 {[%emt 0:00:32]} 35. Rxc6 {[%emt 0:00:02]} Bc5 {[%emt 0:00:10]} 36. h5 {[%emt 0:04:33]} (36. f4 $142 $1 {[%cal Rf4e5]} Qb2 37. Rd2) 36... d4 $2 {[%emt 0:06:33]} (36... Qb2 $16) 37. f4 $1 $18 {[%emt 0:05:15]} Qf6 {[%emt 0:02:24]} 38. exd4 {[%emt 0:00:35]} Rxd4 {[%emt 0:01:15] [#]} 39. Bd5 $1 {[%emt 0:01:38][%mdl 512]} Rxd3 {[%emt 0:05:33]} 40. Qxd3 {[%emt 0:00:01] Black must now prevent Bxe6.} Qa1 {[%emt 0:01:00]} (40... Qb2+ $142 41. Kh3 Bxd5 42. Rc8+ (42. Qxd5 Qe2 $18) 42... Kg7 43. Qxd5 Qe2 44. Qe5+ (44. Qxf5 Qf1+ 45. Kg4 Qe2+ 46. Kh3 Qf1+ 47. Kg4 Qd1+ 48. Kh4 Be7+ 49. Kh3 Qh1+ 50. Kg4 Qd1+ 51. Kh3 Qh1+ 52. Kg4 Qd1+ 53. Kh3 $11) 44... Qxe5 45. fxe5 Kh6) 41. h6 $1 {[%emt 0:04:23]} (41. Bxe6 $2 {gets mated.} Qg1+ 42. Kh3 Qh1#) 41... Qb2+ {[%emt 0:07:19] [#]} 42. Kh3 $1 {[%emt 0:01:02] White threatens Rxe6 and mate.} Bg1 {[%emt 0:01:13]} (42... Qf6 $142 43. Bxe6 fxe6) 43. Rc2 {[%emt 0:00:28] Intending Bxe6 and mate.} Qd4 {[%emt 0:00:37] [#]} 44. Bxe6 $1 {[%emt 0:02:32]} fxe6 {[%emt 0:00:21] KQR-KQB} 45. Qb5 {[%emt 0:00:20][%cal Rb5e8]} Qd8 {[%emt 0:00:28] [#]} 46. Rc7 {[%emt 0:00:18]} Qa8 {[%emt 0:00:30] [#]} (46... Bc5 $142) 47. Rb7 $3 {[%emt 0:00:16][%mdl 512] Threatening mate with Qd7.} Qd8 {[%emt 0:00:38]} (47... Qf8 48. Rg7+) 48. Qe5 {[%emt 0:00:39][%csl Gb7,Gh6][%cal Re5g7] White mates.} Bd4 {[%emt 0:00:35]} 49. Qxe6+ {[%emt 0:00:36]} Kh8 {[%emt 0:00:05]} 50. Qxf5 {[%emt 0:00:08][%csl Gb7][%cal Rf5h7]} Qg8 {[%emt 0:00:28]} 51. Rc7 {[%emt 0:00:08]} a4 {[%emt 0:01:23]} 52. bxa4 {[%emt 0:00:34]} b5 {[%emt 0:00:07]} 53. Rc8 {[%emt 0:00:06] Weighted Error Value: White=0.23 (precise) /Black=0.57.  Loses game:     	---       	Black=2      Mistake:       	White=2     	Black=3      Inaccurate:     	White=1     	Black=4      OK:         	White=10    	Black=9      Best:        	White=2     	Black=1      Strong:       	White=3     	---        Brilliant:      	White=1     	---} 1-0

[Event "98th Caplin Hastings Masters 2024-25"]
[Site "Hastings"]
[Date "2024.12.31"]
[Round "6.21"]
[White "Burrows, Martin P"]
[Black "Golding, Alex"]
[Result "1/2-1/2"]
[ECO "B75"]
[WhiteElo "2042"]
[BlackElo "2405"]
[Annotator "TA"]
[PlyCount "63"]
[EventDate "2024.12.23"]
[EventType "swiss"]
[EventCountry "ENG"]
[SourceTitle "playchess.com"]
[Source "ChessBase"]
[SourceQuality "1"]
[TimeControl "5400+30"]

{[%evp 14,63,55,49,56,55,49,69,62,39,32,0,35,0,34,0,0,0,47,0,72,75,73,87,130,159,253,245,241,246,239,233,328,172,432,343,572,297,307,324,332,72,71,74,74,70,62,0,0,0,0,0]} 1. e4 {[%emt 0:00:03]} c5 {[%emt 0:00:38]} 2. Nf3 {[%emt 0:00:07]} d6 {[%emt 0:00:05]} 3. d4 {[%emt 0:00:08]} cxd4 {[%emt 0:00:05]} 4. Nxd4 {[%emt 0:00:05]} Nf6 {[%emt 0:00:11]} 5. Nc3 {[%emt 0:00:04]} g6 {[%emt 0:00:12]} 6. Be3 {[%emt 0:00:08]} Bg7 {[%emt 0:00:24]} 7. f3 {[%emt 0:00:08]} a6 {[%emt 0:00:12]} 8. Qd2 {[%emt 0:01:08]} h5 {[%emt 0:00:06]} 9. Bc4 {[%emt 0:01:09]} b5 {[%emt 0:01:03]} 10. Bb3 {[%emt 0:00:08]} Bb7 {[%emt 0:00:24]} 11. O-O-O {[%emt 0:02:25] White is more active.} Nbd7 {[%emt 0:00:48][%cal Bb8d7,Bd7e5,Be5c4][%mdl 32]} 12. Nd5 {[%emt 0:07:14]} Rc8 {[%emt 0:03:11]} 13. Kb1 {[%emt 0:00:27]} Ne5 {[%emt 0:01:33]} (13... Nxd5 $5 14. exd5 Nc5 $11) 14. Bg5 {[%emt 0:05:07]} Bxd5 {[%emt 0:01:04]} 15. exd5 {[%emt 0:03:02]} O-O {[%emt 0:01:17]} (15... Nc4 $11 16. Qe2 (16. Bxc4 bxc4 17. Nc6 Qb6 $11) 16... Qd7 (16... Nxd5 17. Nxb5 axb5 18. Rxd5 $14)) 16. Rhe1 {[%emt 0:01:54]} (16. Qe2 $14) 16... Re8 {[%emt 0:00:26]} (16... Qb6 $11) 17. Qe2 $16 {[%emt 0:11:45]} Qb6 {[%emt 0:01:23]} 18. f4 {[%emt 0:05:32]} Nc4 {[%emt 0:02:04]} 19. f5 {[%emt 0:01:54]} Ng4 {[%emt 0:03:03]} (19... Nh7 $16) 20. c3 $18 {[%emt 0:06:01]} Nge5 {[%emt 0:01:49]} 21. fxg6 {[%emt 0:01:03]} fxg6 {[%emt 0:00:08]} 22. Ne6 {[%emt 0:02:27]} Bh8 {[%emt 0:00:25]} (22... Bf6 23. Qc2 Kh7) 23. h3 {[%emt 0:05:50]} (23. Bxc4 $142 Rxc4 24. Qc2) 23... a5 $2 {[%emt 0:00:35]} (23... b4) 24. g4 {[%emt 0:00:47]} h4 $2 {[%emt 0:00:10]} (24... Nxb2 {was worth a try.} 25. Qxb2 (25. Kxb2 a4 $14) 25... a4) 25. Bxh4 {[%emt 0:02:30]} b4 {[%emt 0:00:14]} 26. Bf2 {[%emt 0:02:33]} Qb5 {[%emt 0:00:09] [#]} 27. cxb4 $2 {[%emt 0:04:13]} (27. Bd4 bxc3 28. Bxc3 Na3+ 29. Ka1 Rxc3 30. bxc3 Qb4 $11) (27. Nd4 $1 $18 {[%cal Rd4b5]} Qxd5 28. cxb4) 27... Qxb4 $16 {[%emt 0:00:15] ...a4 would now be deadly.} 28. Bd4 {[%emt 0:03:59] Hoping for Ka1. A strong pair of Bishops.} a4 {[%emt 0:00:44]} 29. Bxc4 {[%emt 0:01:36]} ({Don't go for} 29. Bc3 $2 Na3+ 30. bxa3 Qxc3 $19) 29... Nxc4 {[%emt 0:05:48]} 30. Qd3 {[%emt 0:02:35] Repels Na3+} (30. Ka1 $1 $14 Rb8 31. a3 Nxa3 32. Bxh8 (32. bxa3 {is a self mate.} Qxa3+ 33. Qa2 Bxd4+ 34. Nxd4 Qc3+) 32... Kxh8 33. Rc1 (33. bxa3 $2 Qxa3+ 34. Qa2 Qc3+) (33. Rd4 $2 Qxe1+ 34. Qxe1 Nc2+ 35. Ka2 Nxe1 $19)) 30... Bxd4 $11 {[%emt 0:01:01][%csl Gc4,Gd4][%cal Rb4b2]} 31. Qxg6+ {[%emt 0:03:38]} Kh8 {[%emt 0:00:05][%csl Gc4,Gd4][%cal Rb4b2]} 32. Qh6+ {[%emt 0:01:43]} (32. Nxd4 $2 Qxb2#) 1/2-1/2

[Event "98th Caplin Hastings Masters 2024-25"]
[Site "Hastings"]
[Date "2024.12.31"]
[Round "6.22"]
[White "Lucas, Arthur"]
[Black "Rida, Ruqayyah"]
[Result "1/2-1/2"]
[ECO "C54"]
[WhiteElo "2335"]
[BlackElo "2019"]
[Annotator "ChessBase"]
[PlyCount "109"]
[EventDate "2024.12.23"]
[EventType "swiss"]
[EventCountry "ENG"]
[SourceTitle "playchess.com"]
[Source "ChessBase"]
[SourceQuality "1"]
[TimeControl "5400+30"]

1. e4 {[%emt 0:01:14]} e5 {[%emt 0:00:12]} 2. Nf3 {[%emt 0:00:10]} Nc6 {[%emt 0:00:16]} 3. Bc4 {[%emt 0:00:18]} Bc5 {[%emt 0:00:18]} 4. c3 {[%emt 0:00:05]} Nf6 {[%emt 0:00:16]} 5. d4 {[%emt 0:00:05]} exd4 {[%emt 0:00:13]} 6. b4 {[%emt 0:00:05]} Bb6 {[%emt 0:01:38]} 7. e5 {[%emt 0:00:07]} d5 {[%emt 0:02:03]} 8. exf6 {[%emt 0:00:05]} dxc4 {[%emt 0:01:18]} 9. Qe2+ {[%emt 0:00:06]} Be6 {[%emt 0:01:28]} 10. b5 {[%emt 0:00:06]} Na5 {[%emt 0:05:25]} 11. fxg7 {[%emt 0:00:18]} Rg8 {[%emt 0:00:50]} 12. cxd4 {[%emt 0:00:06]} Bxd4 {[%emt 0:09:15]} 13. Nxd4 {[%emt 0:00:05]} Qxd4 {[%emt 0:00:29]} 14. Bb2 {[%emt 0:00:05]} Qd3 {[%emt 0:05:18]} 15. Bf6 {[%emt 0:00:06]} Qf5 {[%emt 0:17:20]} 16. Qe5 {[%emt 0:09:46]} Qxe5+ {[%emt 0:04:31]} 17. Bxe5 {[%emt 0:00:12]} Ke7 {[%emt 0:00:18]} 18. Nd2 {[%emt 0:05:25]} f6 {[%emt 0:06:48]} 19. Bc3 {[%emt 0:02:00]} b6 {[%emt 0:00:27]} 20. Ne4 {[%emt 0:04:54]} Kf7 {[%emt 0:00:55]} 21. Nxf6 {[%emt 0:09:14]} Rxg7 {[%emt 0:01:38]} 22. g3 {[%emt 0:03:24]} Nb7 {[%emt 0:12:19]} 23. O-O {[%emt 0:09:08]} Nc5 {[%emt 0:05:17]} 24. Rfe1 {[%emt 0:00:55]} Rd8 {[%emt 0:03:14]} 25. Ne4 {[%emt 0:01:25]} Nxe4 {[%emt 0:00:47]} 26. Rxe4 {[%emt 0:00:59]} Rg4 {[%emt 0:01:25]} 27. Re3 {[%emt 0:02:31]} Rd3 {[%emt 0:00:39]} 28. a4 {[%emt 0:05:53]} Rg5 {[%emt 0:02:51]} 29. Rc1 {[%emt 0:04:40]} Rgd5 {[%emt 0:01:33]} 30. Kg2 {[%emt 0:01:22]} Rxe3 {[%emt 0:01:19]} 31. fxe3 {[%emt 0:00:05]} Rd3 {[%emt 0:01:10]} 32. Kf3 {[%emt 0:00:28]} Ke7 {[%emt 0:00:48]} 33. g4 {[%emt 0:01:58]} Rd8 {[%emt 0:01:45]} 34. g5 {[%emt 0:01:26]} Rd5 {[%emt 0:00:58]} 35. h4 {[%emt 0:08:40]} Kf7 {[%emt 0:05:20]} 36. Ke4 {[%emt 0:05:01]} Kg6 {[%emt 0:00:20]} 37. Rf1 {[%emt 0:04:58]} Rf5 {[%emt 0:00:53]} 38. Rf4 {[%emt 0:06:18]} c6 {[%emt 0:03:42]} 39. Rxf5 {[%emt 0:07:47]} Bxf5+ {[%emt 0:00:10]} 40. Kd4 {[%emt 0:00:07]} cxb5 {[%emt 0:00:18]} 41. axb5 {[%emt 0:00:01]} Bd7 {[%emt 0:01:44]} 42. Kxc4 {[%emt 0:00:06]} Kf5 {[%emt 0:00:06]} 43. Be1 {[%emt 0:02:44]} Ke4 {[%emt 0:01:56]} 44. Bg3 {[%emt 0:00:14]} Bc8 {[%emt 0:01:13]} 45. Bf4 {[%emt 0:01:17]} Bg4 {[%emt 0:00:51]} 46. Kb4 {[%emt 0:02:00]} Be2 {[%emt 0:00:31]} 47. Ka4 {[%emt 0:01:21]} Kf5 {[%emt 0:00:58]} 48. Bb8 {[%emt 0:00:49]} a6 {[%emt 0:00:28]} 49. bxa6 {[%emt 0:00:08]} Bxa6 {[%emt 0:00:09]} 50. Bc7 {[%emt 0:00:17]} Kg4 {[%emt 0:00:42]} 51. Bd8 {[%emt 0:00:08]} Bd3 {[%emt 0:00:18]} 52. Kb4 {[%emt 0:00:35]} Bg6 {[%emt 0:00:20]} 53. Kb5 {[%emt 0:01:20]} Kxh4 {[%emt 0:00:19]} 54. Kxb6 {[%emt 0:00:03]} Kh5 {[%emt 0:00:14]} 55. Kc5 {[%emt 0:00:08]} 1/2-1/2